fUSD/lending_fUSD_20241008
["ID","MTS","AMOUNT","RATE_DAILY","PERIOD"]
[340054480,1728412081310,-49700.0,0.00011,2]
[340054481,1728412081889,-50000.0,0.00011,2]
[340054482,1728412082466,-50000.0,0.00011,2]
[340054483,1728412083051,-50000.0,0.00011,2]
[340054484,1728412083813,-50000.0,0.00011,2]
[340054517,1728412231535,-296.84,0.00010277,2]
[340054518,1728412231545,-3.46,0.00010845,2]
[340054519,1728412231559,-453.0,0.00010845,2]
[340054520,1728412231618,-520.41993916,0.00010845,2]
[340054521,1728412231629,-96.42185984,0.00010845,2]
[340054522,1728412231639,-555.09795119,0.000109,2]
[340054523,1728412231651,-1020.21114881,0.000109,2]
[340054524,1728412231662,-162.76496496,0.000109,2]
[340054525,1728412231673,-500.0,0.00010973,2]
[340054526,1728412231684,-500.0,0.00010973,2]
[340054527,1728412231694,-155.73530182,0.0001099,2]
[340054528,1728412231704,-630.0,0.00010997,2]
[340054529,1728412231715,-276.16624283,0.00010999,2]
[340054530,1728412231724,-218.07794851,0.00010999,2]
[340054531,1728412231737,-81.92205149,0.00010999,2]
[340054532,1728412231746,-150.0,0.00010999,2]
[340054533,1728412231757,-247.92566002,0.00010999,2]
[340054540,1728412231931,-252.07433998,0.00010999,2]
[340054541,1728412231941,-500.0,0.00010999,2]
[340054542,1728412231951,-307.25687348,0.00010999,2]
[340054543,1728412231962,-4417.43878654,0.00011,2]
[340054544,1728412231982,-4869.87206032,0.00011,2]
[340054545,1728412231994,-4927.94500001,0.00011,2]
[340054546,1728412232007,-5823.00804009,0.00011,2]
[340054560,1728412237727,-166.80647997,0.00010997,2]
[340054561,1728412237736,-83.19352003,0.00011,2]
[340054565,1728412239639,-650.10809178,0.00011,2]
[340054566,1728412239654,-1334.87992875,0.00011,2]
[340054626,1728412242666,-1563.77684737,0.00011,2]
[340054627,1728412242675,-3999.999999,0.00011,2]
[340054628,1728412242685,-250.0,0.00011,2]
[340054629,1728412242695,-321573.27363799,0.00011,2]
[340054632,1728412245597,-280.7249445,0.00011,2]
[340054735,1728412956143,-175.9299,0.000109,2]
[340054736,1728412956166,-2426.70296313,0.000109,2]
[340054737,1728412956188,-162.76496496,0.000109,2]
[340054738,1728412956209,-160.39,0.00010959,2]
[340054739,1728412956230,-500.0,0.00010973,2]
[340054740,1728412956251,-155.73530183,0.0001099,2]
[340054741,1728412956272,-166.80647998,0.00010997,2]
[340054742,1728412956293,-300.0,0.00010999,2]
[340054743,1728412956315,-150.0,0.00010999,2]
[340054744,1728412956339,-62514.6703901,0.00011,2]
[340054745,1728412960881,-50000.0,0.00011,2]
[340054746,1728412961993,-50000.0,0.00011,2]
[340054747,1728412964216,-50000.0,0.00011,2]
[340054758,1728413330585,313.32,9.888e-05,2]
[340054767,1728413432005,-1087.0,0.000109,2]
[340054773,1728413432285,-0.41333446,0.000109,2]
[340054774,1728413437938,-280.30532125,0.000109,2]
[340054775,1728413438087,-816.31401108,0.000109,2]
[340054777,1728413438099,-11336.18598859,0.00011,2]
[340054828,1728413439939,-360.61570301,0.00011,2]
[340054829,1728413439958,-310.99,0.00011,2]
[340054830,1728413440114,-466.3987895,0.00011,2]
[340054831,1728413440126,-2043.76623838,0.00011,2]
[340054833,1728413440137,-804.51239305,0.00011,2]
[340054838,1728413443187,-2.6231985,0.00011,2]
[340054839,1728413443201,-325823.27363699,0.00011,2]
[340054842,1728413445722,-404.0918725,0.00011,2]
[340054843,1728413445997,-1863.42,0.00011,2]
[340054844,1728413527451,1002.10735591,0.000102,5]
[340054845,1728413527478,10510.89264409,0.000102,5]
[340054847,1728413911973,150.0,9.579e-05,2]
[340054848,1728413911998,150.0,9.579e-05,2]
[340054849,1728413912019,26.45,9.579e-05,2]
[340054851,1728414003828,480.4,0.00012959,14]
[340054857,1728414443212,150.0,9.135e-05,2]
[340054858,1728414443234,150.0,9.135e-05,2]
[340054859,1728414443255,10.12,9.135e-05,2]
[340054871,1728414631882,-300.0,0.00010899,2]
[340054873,1728414631891,-3656.27515077,0.000109,2]
[340054875,1728414631902,-1947.2218158,0.000109,2]
[340054877,1728414631912,-2116.58799259,0.000109,2]
[340054879,1728414631924,-3106.15268631,0.000109,2]
[340054882,1728414631935,-846.08694448,0.000109,2]
[340054884,1728414631945,-702.93574009,0.000109,2]
[340054885,1728414631956,-488.65640247,0.000109,2]
[340054886,1728414631972,-2845.26197858,0.000109,2]
[340054887,1728414631983,-5728.33169899,0.000109,2]
[340054888,1728414631994,-670.05965265,0.000109,2]
[340054889,1728414632005,-806.23061336,0.000109,2]
[340054890,1728414632016,-4118.27119374,0.000109,2]
[340054891,1728414632027,-752.8607206,0.000109,2]
[340054892,1728414632038,-299.6900001,0.000109,2]
[340054893,1728414632049,-335.08950845,0.000109,2]
[340054894,1728414632060,-276.52,0.000109,2]
[340054895,1728414632082,-541.49640217,0.000109,2]
[340054896,1728414632093,-806.59811442,0.000109,2]
[340054897,1728414632104,-889.15149544,0.000109,2]
[340054898,1728414632115,-271.96394405,0.000109,2]
[340054899,1728414632126,-450.0,0.000109,2]
[340054900,1728414632136,-4277.03584135,0.000109,2]
[340054901,1728414632148,-7103.03995499,0.000109,2]
[340054902,1728414632159,-2034.3771887,0.000109,2]
[340054903,1728414632177,-250.0,0.000109,2]
[340054904,1728414632188,-462.1552599,0.000109,2]
[340054905,1728414632200,-290.61267996,0.000109,2]
[340054906,1728414632211,-1675.01672016,0.000109,2]
[340054907,1728414632222,-4515.42260965,0.00010945,2]
[340054909,1728414632234,-1357.49168412,0.00010945,2]
[340054911,1728414632246,-432.000004,0.00010945,2]
[340054912,1728414632262,-12177.92299829,0.00010945,2]
[340054927,1728414638154,-2100.65791727,0.00010945,2]
[340054928,1728414638290,-274.27572277,0.00010945,2]
[340054929,1728414638302,-460.04,0.00010945,2]
[340054930,1728414638313,-829.54403618,0.00010945,2]
[340054931,1728414638325,-949.24733654,0.00010945,2]
[340054932,1728414638335,-1000.0,0.00010945,2]
[340054933,1728414638344,-1000.0,0.00010945,2]
[340054934,1728414638353,-1000.0,0.00010945,2]
[340054935,1728414638363,-722.6143,0.00010945,2]
[340054936,1728414638372,-153.21512411,0.00010947,2]
[340054937,1728414638382,-191.2,0.00010959,2]
[340054938,1728414638391,-242.95,0.0001098,2]
[340054939,1728414638400,-29413.65674432,0.00011,2]
[340054940,1728414638412,-600.0,0.00011,2]
[340054941,1728414638543,-1201.07485359,0.00011,2]
[340054947,1728414640112,-2037.33,0.00011,2]
[340054948,1728414640123,-310.065,0.00011,2]
[340054949,1728414640264,-4040.214,0.00011,2]
[340054976,1728414646106,-602.95368265,0.00010845,2]
[340054977,1728414646115,-287.65772728,0.00011,2]
[340054982,1728414968576,150.0,9.575e-05,2]
[340054983,1728414968613,150.0,9.575e-05,2]
[340054984,1728414968646,39.63,9.575e-05,2]
[340055017,1728415832094,-294.56,0.000108,3]
[340055018,1728415832222,-305.44,0.000108,3]
[340055019,1728415832237,-322.64,0.00010834,2]
[340055020,1728415832246,-150.0,0.00010879,2]
[340055021,1728415832256,-48073.93108112,0.0001088,2]
[340055022,1728415832363,-1978.8290792,0.0001088,2]
[340055040,1728415838323,-12635.0,0.0001088,2]
[340055069,1728415840236,-621.925,0.0001088,2]
[340055070,1728415840375,-48375.31429145,0.0001088,2]
[340055071,1728415840385,-1200.0,0.000109,3]
[340055072,1728415840394,-150.21,0.00010959,2]
[340055073,1728415840404,-160.39,0.00010959,2]
[340055074,1728415840413,-166.80647998,0.00010997,2]
[340055075,1728415840422,-286.17813824,0.00010999,2]
[340055076,1728415840431,-1950.29699677,0.00010999,2]
[340055077,1728415840440,-500.0,0.00010999,2]
[340055078,1728415840449,-373.70680553,0.00010999,2]
[340055079,1728415840458,-219.6,0.00010999,2]
[340055080,1728415840467,-999.99,0.00010999,2]
[340055081,1728415840477,-6001.86,0.00010999,2]
[340055082,1728415840486,-250.0,0.00011,2]
[340055083,1728415840495,-29633.27121841,0.00011,2]
[340055084,1728415840507,-39145.84406584,0.00011,2]
[340055135,1728415843418,-325.41156671,0.00011,2]
[340055150,1728415846302,-1240.11888,0.00011,2]
[340055151,1728415846312,-3515.5793708,0.00011,2]
[340055152,1728415846428,-619.7,0.00011,2]
[340055155,1728415861714,1947.0,0.000102,5]
[340055157,1728416041263,150.0,9.644e-05,2]
[340055158,1728416041286,150.0,9.644e-05,2]
[340055159,1728416041309,43.01,9.644e-05,2]
[340055160,1728416548841,150.0,0.00010029,2]
[340055161,1728416548862,150.0,0.00010029,2]
[340055162,1728416548883,25.85,0.00010029,2]
[340055172,1728417032368,-879.0,0.000107,2]
[340055173,1728417032380,-500.0,0.000108,3]
[340055174,1728417032390,-300.0,0.00010899,2]
[340055175,1728417032400,-183.30171903,0.000109,2]
[340055176,1728417032412,-158.16356694,0.000109,2]
[340055177,1728417032422,-1000.0,0.000109,3]
[340055178,1728417032434,-1769.06646009,0.000109,2]
[340055179,1728417032443,-191.2,0.00010959,2]
[340055180,1728417032451,-166.80647998,0.00010997,2]
[340055181,1728417032460,-549.0,0.00011,2]
[340055182,1728417032469,-4219.65933242,0.00011,2]
[340055184,1728417032482,-337.01913656,0.00011,2]
[340055186,1728417032494,-4934.54500001,0.00011,2]
[340055200,1728417038626,-14976.47008776,0.00011,2]
[340055218,1728417040285,-6063.99491447,0.00011,2]
[340055219,1728417040558,-607.7463551,0.00011,2]
[340055246,1728417043440,-838.42354595,0.00011,2]
[340055247,1728417043496,-12592.55099999,0.00011,2]
[340055250,1728417058659,150.0,9.98e-05,2]
[340055251,1728417058680,150.0,9.98e-05,2]
[340055252,1728417058700,150.0,9.98e-05,2]
[340055253,1728417058721,150.0,9.98e-05,2]
[340055254,1728417058740,150.0,9.98e-05,2]
[340055255,1728417058760,150.0,9.98e-05,2]
[340055256,1728417058906,150.0,9.98e-05,2]
[340055257,1728417058928,160.11,9.98e-05,2]
[340055258,1728417058955,22689.89,9.98e-05,2]
[340055259,1728417079042,181.93414592,9.437e-05,2]
[340055260,1728417079067,159.34585408,9.437e-05,2]
[340055261,1728417264372,151.75,9.69e-05,2]
[340055262,1728417624941,98.25,9.437e-05,2]
[340055263,1728417624962,150.0,9.437e-05,2]
[340055264,1728417624986,98.55,9.437e-05,2]
[340055266,1728418054377,11486.0,0.000102,5]
[340055267,1728418197203,329.46,9.437e-05,2]
[340055270,1728418231427,-684.99,0.00010721,2]
[340055271,1728418231437,-925.6,0.00010778,2]
[340055272,1728418231446,-179.262,0.0001078,2]
[340055273,1728418231455,-400.0,0.000108,3]
[340055274,1728418231464,-150.0,0.00010899,2]
[340055275,1728418231473,-300.0,0.00010899,2]
[340055276,1728418231482,-183.30171903,0.000109,2]
[340055277,1728418231492,-1000.0,0.000109,2]
[340055278,1728418231501,-1000.0,0.000109,2]
[340055279,1728418231512,-7153.09876073,0.000109,2]
[340055280,1728418231536,-1579.69576953,0.000109,2]
[340055281,1728418231548,-812.39353337,0.000109,2]
[340055282,1728418231588,-277.5783648,0.000109,2]
[340055283,1728418231599,-13104.96597157,0.000109,2]
[340055284,1728418231609,-15617.74415138,0.000109,2]
[340055289,1728418237537,-762.66851163,0.000109,2]
[340055290,1728418237853,-760.83910597,0.000109,2]
[340055300,1728418241258,-901.97564511,0.000109,2]
[340055301,1728418241269,-1305.1161,0.000109,2]
[340055364,1728418245497,-311.790848,0.000109,2]
[340055386,1728418338472,300.0,0.00015,15]
[340055387,1728418455889,11515.0,0.000102,5]
[340055388,1728418456151,793.0,0.000101,3]
[340055389,1728418738178,312.98,9.371e-05,2]
[340055437,1728419100374,250.0,0.00010214,2]
[340055438,1728419146593,1718.3,9.984e-05,2]
[340055439,1728419164849,1425.15127954,0.0001017,2]
[340055440,1728419174412,300.0,0.0001021,2]
[340055441,1728419186422,3223.03,9.905e-05,2]
[340055442,1728419252531,297.33,8.369e-05,2]
[340055443,1728419266393,200.0,0.00010225,2]
[340055449,1728419302234,500.0,9.905e-05,2]
[340055468,1728419343454,1068.7,0.00010194,2]
[340055476,1728419380002,703.35,0.00010217,2]
[340055477,1728419383823,150.0,0.00010217,2]
[340055481,1728419407860,200.0,9.872e-05,2]
[340055496,1728419431598,-300.0,0.00010262,2]
[340055497,1728419431608,-281.22703757,0.00010263,2]
[340055498,1728419431620,-7349.96119563,0.00010263,2]
[340055499,1728419431657,-13707.7717668,0.00010263,2]
[340055500,1728419431666,-2492.2282332,0.00010276,2]
[340055501,1728419431680,-1308.7317668,0.00010276,2]
[340055502,1728419431689,-164.22,0.00010322,2]
[340055503,1728419431698,-418.92,0.00010376,2]
[340055504,1728419431707,-250.0,0.00010386,2]
[340055505,1728419431720,-150.0,0.00010418,2]
[340055506,1728419431729,-1000.0,0.00010419,2]
[340055507,1728419431740,-449.56358332,0.00010419,2]
[340055508,1728419431759,-350.11172087,0.00010419,2]
[340055509,1728419431769,-1884.73285,0.00010419,2]
[340055510,1728419431781,-300.0,0.00010419,2]
[340055511,1728419431831,-761.48547022,0.00010419,2]
[340055541,1728419437731,-737.85,0.00010495,2]
[340055542,1728419437740,-297.33,0.00010632,2]
[340055543,1728419437750,-205.94,0.00010712,2]
[340055544,1728419437759,-150.99,0.00010712,2]
[340055545,1728419437768,-400.0,0.000108,3]
[340055546,1728419437777,-4247.6888,0.000108,2]
[340055547,1728419437786,-1463.7615,0.000108,2]
[340055548,1728419437795,-3175.43902069,0.000109,2]
[340055549,1728419437894,-742.11629914,0.000109,2]
[340055550,1728419437905,-277.0527081,0.000109,2]
[340055551,1728419437950,-3149.89823999,0.000109,2]
[340055591,1728419439618,-659.89931488,0.000109,2]
[340055592,1728419439630,-957.45662176,0.000109,2]
[340055593,1728419439642,-1870.288358,0.000109,2]
[340055617,1728419442787,-401.13075014,0.000109,2]
[340055651,1728419445702,-5467.13636742,0.000109,2]
[340055652,1728419445713,-5737.37786493,0.000109,2]
[340055659,1728419550045,1502.03,9.872e-05,2]
[340055661,1728419648684,-262.1704,0.000108,2]
[340055662,1728419648706,-150.0,0.00010899,2]
[340055663,1728419648728,-488.9524,0.000109,2]
[340055664,1728419648894,-7631.59,0.000109,2]
[340055665,1728419648917,-9999.99,0.000109,2]
[340055666,1728419648939,-800.0,0.000109,3]
[340055667,1728419648960,-353.24,0.000109,2]
[340055668,1728419648981,-1000.0,0.000109,2]
[340055669,1728419649003,-27614.0572,0.000109,2]
[340055670,1728419688514,250.0,9.872e-05,2]
[340055671,1728419761328,267.59,8.219e-05,2]
[340055672,1728419851254,534.35,9.872e-05,2]
[340055680,1728420331009,10541.67,0.0002111,120]
[340055681,1728420354871,254.21,8.68e-05,2]
[340055687,1728420412515,1260.06,0.0002111,120]
[340055719,1728420631805,-291.26630725,0.0001044,2]
[340055720,1728420631820,-2724.54259575,0.0001044,2]
[340055721,1728420631831,-267.17,0.00010493,2]
[340055722,1728420631842,-250.0,0.00010497,2]
[340055723,1728420631851,-200.0,0.00010516,2]
[340055724,1728420631862,-300.0,0.000108,3]
[340055725,1728420631871,-158.28740425,0.000108,2]
[340055726,1728420631883,-6234.1,0.000108,2]
[340055727,1728420631894,-14771.47652837,0.000108,2]
[340055728,1728420631915,-604.98,0.000108,2]
[340055729,1728420631935,-5829.78992739,0.000108,2]
[340055730,1728420631945,-8739.94479921,0.00010899,2]
[340055731,1728420631954,-150.0,0.00010899,2]
[340055732,1728420631963,-10213.30325129,0.00010899,2]
[340055733,1728420631973,-28145.0742,0.000109,2]
[340055734,1728420631983,-8473.3885,0.000109,2]
[340055735,1728420631994,-1592.15981409,0.000109,2]
[340055736,1728420632004,-1000.0,0.000109,2]
[340055737,1728420632014,-700.0,0.000109,3]
[340055738,1728420632023,-2500.0,0.000109,2]
[340055739,1728420632033,-254.21,0.00010944,2]
[340055740,1728420632043,-150.21,0.00010959,2]
[340055741,1728420632054,-160.39,0.00010959,2]
[340055742,1728420632064,-250.0,0.00010959,2]
[340055743,1728420632074,-150.0,0.00010959,2]
[340055744,1728420632083,-549.05,0.00010959,2]
[340055745,1728420632092,-537.73,0.00010959,2]
[340055746,1728420632101,-499.99,0.00010959,2]
[340055747,1728420632110,-776.85,0.00010959,2]
[340055748,1728420632120,-368.87734335,0.00010973,2]
[340055749,1728420632130,-323.8,0.0001099,2]
[340055750,1728420632139,-2183.6091088,0.00010995,2]
[340055751,1728420632148,-3125.7175066,0.00010995,2]
[340055752,1728420632157,-166.80647998,0.00010997,2]
[340055753,1728420632167,-1015.12729283,0.00010999,2]
[340055754,1728420632176,-18735.90239216,0.00011,2]
[340055755,1728420632187,-1467.87324433,0.00011,2]
[340055756,1728420632201,-1684.98777253,0.00011,2]
[340055757,1728420632222,-873.5710735,0.00011,2]
[340055761,1728420638063,-3365.95,0.00011,2]
[340055762,1728420638171,-1231.76374629,0.00011,2]
[340055763,1728420638226,-549.411646,0.00011,2]
[340055764,1728420638283,-364.55288824,0.00011,2]
[340055766,1728420639886,-30750.75484949,0.00011,2]
[340055767,1728420639940,-1246.815,0.00011,2]
[340055843,1728420642823,-1563.03688022,0.00011,2]
[340055845,1728420646036,-305.33621597,0.00011,2]
[340055901,1728420867650,300.64,9.381e-05,2]
[340055907,1728421381516,285.6,9.083e-05,2]
[340055908,1728421435339,450.0,0.00010122,2]
[340055910,1728421487129,500.0,0.00010111,2]
[340055915,1728421678871,250.0,0.0001013,2]
[340055916,1728421740399,186.44,0.00010129,2]
[340055917,1728421794992,239.34,0.00010113,2]
[340055918,1728421801869,1000.0,0.00010139,2]
[340055926,1728421831906,-157.73970547,0.000108,2]
[340055927,1728421831915,-300.0,0.00010899,2]
[340055928,1728421831924,-1789.85956441,0.000109,2]
[340055929,1728421832123,-9575.04313559,0.000109,2]
[340055930,1728421832133,-300.0,0.000109,3]
[340055931,1728421832142,-150.21,0.00010959,2]
[340055932,1728421832153,-160.39,0.00010959,2]
[340055933,1728421832162,-150.0,0.00010959,2]
[340055934,1728421832171,-500.0,0.00010959,2]
[340055935,1728421832180,-250.0,0.0001099,2]
[340055936,1728421832190,-1253.0425034,0.00010993,2]
[340055937,1728421832199,-12574.7631538,0.00010993,2]
[340055938,1728421832209,-1000.0,0.00010994,2]
[340055939,1728421832219,-150.0,0.00010994,2]
[340055940,1728421832228,-2007.0853647,0.00010995,2]
[340055941,1728421832237,-2840.96,0.00010995,2]
[340055942,1728421832247,-352.22,0.00010995,2]
[340055943,1728421832257,-499.99,0.00010997,2]
[340055944,1728421832266,-166.80647998,0.00010997,2]
[340055945,1728421832275,-500.0,0.00011,2]
[340055946,1728421832284,-76325.68080088,0.00011,2]
[340055947,1728421832296,-155182.44510098,0.00011,2]
[340055967,1728421832795,1328.91,0.00010218,2]
[340056054,1728421838171,-1407.12373208,0.00011,2]
[340056091,1728421846067,-2500.0,0.000109,2]
[340056092,1728421846076,-3746.29304,0.00011,2]
[340056093,1728421928143,271.32,9.37e-05,2]
[340056096,1728422470041,257.75,9.228e-05,2]
[340056122,1728423032124,-1260.06463122,0.00010899,2]
[340056124,1728423032134,-300.0,0.000109,3]
[340056125,1728423032143,-1432.94383269,0.000109,2]
[340056126,1728423032152,-166.80647998,0.00010997,2]
[340056127,1728423032161,-300.0,0.00010998,2]
[340056128,1728423032171,-10403.08376634,0.00010999,2]
[340056129,1728423032294,-1287.62195801,0.00010999,2]
[340056130,1728423032305,-12853.33043655,0.00010999,2]
[340056131,1728423032314,-150.0,0.00010999,2]
[340056132,1728423032324,-2673.16956345,0.00011,2]
[340056168,1728423040205,-594.39655094,0.00011,2]
[340056169,1728423040216,-1264.55030501,0.00011,2]
[340056170,1728423040261,-421.66372381,0.00011,2]
[340056171,1728423040377,-300.0,0.00011,2]
[340056172,1728423040389,-5244.58188863,0.00011,2]
[340056229,1728423043308,-446207.89674352,0.00011,2]
[340056230,1728423043318,-3999.999999,0.00011,2]
[340056231,1728423043327,-287245.20176916,0.00011,2]
[340056232,1728423043336,-183322.30606276,0.00011,2]
[340056233,1728423043345,-250.0,0.00011,2]
[340056234,1728423043356,-29280.11356659,0.00011,2]
[340056235,1728423043365,-2640.6696525,0.00011008,2]
[340056236,1728423043374,-26500.134957,0.00011008,2]
[340056237,1728423043382,-1623.7707818,0.00011015,2]
[340056238,1728423043391,-158.61,0.00011139,2]
[340056239,1728423043400,-250.0,0.00011146,2]
[340056240,1728423043409,-1610.26,0.00011146,2]
[340056241,1728423043418,-499.99,0.00011146,2]
[340056242,1728423043427,-1500.0,0.00011153,2]
[340056243,1728423043437,-256.99,0.00011154,2]
[340056244,1728423043446,-182.41,0.00011154,2]
[340056245,1728423043455,-499.99,0.00011154,2]
[340056246,1728423043465,-250.0,0.00011158,2]
[340056247,1728423043479,-200.0,0.0001117,2]
[340056249,1728423043488,-150.99,0.0001117,2]
[340056250,1728423043497,-250.0,0.00011172,2]
[340056251,1728423043507,-800.0,0.00011177,2]
[340056252,1728423043518,-658.69,0.0001118,2]
[340056253,1728423043530,-200.0,0.00011183,2]
[340056254,1728423043539,-159.99,0.00011187,2]
[340056255,1728423043549,-286.14,0.00011191,2]
[340056256,1728423043558,-23870.0,0.00011198,2]
[340056257,1728423043569,-1000.0,0.000112,2]
[340056258,1728423043578,-282.57,0.00011259,2]
[340056259,1728423043587,-200.0,0.00011274,2]
[340056260,1728423043597,-318.05,0.00011278,2]
[340056261,1728423043606,-418.09801019,0.00011283,2]
[340056262,1728423043614,-184.7,0.00011344,2]
[340056263,1728423043624,-184.7,0.00011401,2]
[340056264,1728423043633,-2751.0,0.00011507,2]
[340056265,1728423043642,-2035.47,0.00011689,2]
[340056266,1728423043651,-3353.0,0.00011689,2]
[340056268,1728423043659,-1910.0,0.00011689,2]
[340056269,1728423043668,-806.0,0.00011689,2]
[340056270,1728423043677,-1081.0,0.00011689,2]
[340056271,1728423043687,-426.424,0.00011689,2]
[340056272,1728423043696,-150.0,0.00011689,2]
[340056273,1728423043705,-1573.151,0.00011689,2]
[340056274,1728423043714,-626.0,0.00011689,2]
[340056275,1728423043722,-449.0,0.00011689,2]
[340056276,1728423043731,-1297.0,0.00011689,2]
[340056277,1728423043740,-1134.009,0.00011689,2]
[340056278,1728423043749,-1149.0,0.00011689,2]
[340056279,1728423043758,-256.99,0.00011712,2]
[340056280,1728423043767,-1000.0,0.00012,2]
[340056281,1728423043776,-255.0,0.00012044,2]
[340056282,1728423043785,-181.31,0.00012055,2]
[340056283,1728423043795,-285.663,0.00012079,2]
[340056284,1728423043805,-164.0,0.00012079,2]
[340056285,1728423043814,-164.968,0.00012079,2]
[340056286,1728423043823,-420.0,0.00012086,2]
[340056287,1728423043833,-156.64,0.00012089,2]
[340056288,1728423043842,-200.0,0.00012089,2]
[340056289,1728423043852,-151.779,0.00012089,2]
[340056290,1728423043861,-250.0,0.00012089,2]
[340056291,1728423043870,-227.0,0.000122,2]
[340056292,1728423043879,-301.4,0.000122,2]
[340056293,1728423043888,-368.0,0.000122,2]
[340056294,1728423043898,-256.99,0.00012269,2]
[340056295,1728423043908,-150.0,0.000123,2]
[340056296,1728423043917,-180.0,0.00012308,2]
[340056297,1728423043926,-151.0,0.00012329,2]
[340056298,1728423043936,-295.734267,0.00012329,2]
[340056299,1728423043945,-151.0,0.00012329,2]
[340056300,1728423043954,-151.0,0.00012329,2]
[340056301,1728423043964,-151.0,0.00012329,2]
[340056302,1728423043973,-151.0,0.00012329,2]
[340056303,1728423043983,-151.0,0.00012329,2]
[340056304,1728423043992,-292.732984,0.00012329,2]
[340056305,1728423044001,-151.0,0.00012329,2]
[340056306,1728423044010,-151.0,0.00012329,2]
[340056307,1728423044019,-151.0,0.00012329,2]
[340056308,1728423044029,-151.0,0.00012329,2]
[340056309,1728423044038,-152.344452,0.00012329,2]
[340056310,1728423044048,-151.0,0.00012329,2]
[340056311,1728423044058,-151.0,0.00012329,2]
[340056312,1728423044067,-151.0,0.00012329,2]
[340056313,1728423044076,-151.641248,0.00012329,2]
[340056314,1728423044086,-151.0,0.00012329,2]
[340056315,1728423044096,-151.0,0.00012329,2]
[340056316,1728423044108,-153.21776,0.00012329,2]
[340056317,1728423044117,-151.0,0.00012329,2]
[340056318,1728423044125,-151.0,0.00012329,2]
[340056319,1728423044135,-151.0,0.00012329,2]
[340056320,1728423044144,-151.0,0.00012329,2]
[340056321,1728423044153,-151.0,0.00012329,2]
[340056322,1728423044162,-833.364524,0.00012329,2]
[340056323,1728423044172,-151.0,0.00012329,2]
[340056324,1728423044181,-833.364524,0.00012329,2]
[340056325,1728423044190,-151.0,0.00012329,2]
[340056326,1728423044200,-157.427356,0.00012329,2]
[340056327,1728423044209,-157.427356,0.00012329,2]
[340056328,1728423044218,-157.427356,0.00012329,2]
[340056329,1728423044227,-157.427356,0.00012329,2]
[340056330,1728423044237,-151.0,0.00012329,2]
[340056331,1728423044246,-255.809941,0.00012329,2]
[340056332,1728423044255,-151.0,0.00012329,2]
[340056333,1728423044264,-151.0,0.00012329,2]
[340056334,1728423044274,-484.391636,0.00012329,2]
[340056335,1728423044283,-151.0,0.00012329,2]
[340056336,1728423044293,-151.0,0.00012329,2]
[340056337,1728423044303,-151.0,0.00012329,2]
[340056338,1728423044312,-484.391636,0.00012329,2]
[340056339,1728423044321,-151.0,0.00012329,2]
[340056340,1728423044331,-151.0,0.00012329,2]
[340056341,1728423044339,-151.0,0.00012329,2]
[340056342,1728423044349,-151.0,0.00012329,2]
[340056343,1728423044358,-151.0,0.00012329,2]
[340056344,1728423044367,-151.0,0.00012329,2]
[340056345,1728423044376,-207.731464,0.00012329,2]
[340056346,1728423044386,-207.731464,0.00012329,2]
[340056347,1728423044397,-151.0,0.00012329,2]